[Event "GER-ch Youth-U10 2022"]
[Site "Willingen"]
[Date "2022.06.05"]
[Round "2.13"]
[White "Khanbekyan, Aram"]
[Black "Allen, Phillipp"]
[Result "0-1"]
[ECO "B13"]
[WhiteElo "998"]
[BlackElo "1467"]
[Annotator "NA RC COMBH"]
[PlyCount "108"]
[EventDate "2022.06.05"]
[EventType "swiss"]
[EventRounds "11"]
[EventCountry "GER"]
[SourceTitle "playchess.com"]
[Source "ChessBase"]
[SourceQuality "1"]
[TimeControl "40/4500+30:900+30"]

1. e4 {[%emt 0:00:02]} c6 {[%emt 0:00:05]} 2. d4 {[%emt 0:00:06]} d5 {[%emt 0:00:07]} 3. exd5 {[%emt 0:00:08]} cxd5 {[%emt 0:00:13]} 4. Bd3 {[%emt 0:00:11]} Nc6 {[%emt 0:00:21]} 5. c3 {[%emt 0:00:10]} Nf6 {[%emt 0:00:32]} 6. Bf4 {[%emt 0:00:15]} e6 {[%emt 0:02:15]} 7. Nf3 {[%emt 0:00:11]} Bd6 {[%emt 0:00:24]} 8. Bxd6 {[%emt 0:00:31]} Qxd6 {[%emt 0:00:05]} 9. O-O {[%emt 0:00:36]} O-O {[%emt 0:00:37]} 10. Nbd2 {[%emt 0:00:29]} Bd7 {[%emt 0:01:45]} 11. Re1 {[%emt 0:01:18]} a6 {[%emt 0:01:16]} 12. Ne5 {[%emt 0:00:19]} b5 {[%emt 0:00:29]} 13. Re3 {[%emt 0:01:30]} Ne7 {[%emt 0:02:40]} 14. Rg3 {[%emt 0:01:09]} Ng6 {[%emt 0:01:20]} 15. Nxg6 {[%emt 0:01:45]} hxg6 {[%emt 0:00:13]} 16. Nf3 {[%emt 0:01:26]} b4 {[%emt 0:04:31]} 17. Rh3 {[%emt 0:01:22]} Bb5 {[%emt 0:05:02]} 18. Bc2 {[%emt 0:00:48]} bxc3 {[%emt 0:02:28]} 19. bxc3 {[%emt 0:01:16]} Rfc8 {[%emt 0:01:10]} 20. Ne5 {[%emt 0:00:52]} Nd7 {[%emt 0:00:38]} 21. f4 {[%emt 0:08:35]} Nxe5 {[%emt 0:08:56]} 22. dxe5 {[%emt 0:00:25]} Qc5+ {[%emt 0:01:02]} 23. Kh1 {[%emt 0:00:33]} Qf2 {[%emt 0:04:49]} 24. Rf3 {[%emt 0:01:06]} Qe2 {[%emt 0:00:12]} 25. Bd3 {[%emt 0:01:22]} Qxd1+ {[%emt 0:00:21]} 26. Rxd1 {[%emt 0:00:18]} Rxc3 {[%emt 0:01:08]} 27. Bxb5 {[%emt 0:01:02]} Rxf3 {[%emt 0:00:10]} 28. gxf3 {[%emt 0:00:15]} axb5 {[%emt 0:00:01]} 29. Rb1 {[%emt 0:02:40]} Ra3 {[%emt 0:04:18]} 30. Rxb5 {[%emt 0:01:13]} Rxf3 {[%emt 0:00:18]} 31. a4 {[%emt 0:01:38]} Rxf4 {[%emt 0:00:12]} 32. a5 {[%emt 0:00:09]} Ra4 {[%emt 0:00:50]} 33. Kg2 {[%emt 0:01:20]} Ra3 {[%emt 0:00:00]} 34. Kf2 {[%emt 0:00:13]} d4 {[%emt 0:01:27]} 35. Ke2 {[%emt 0:01:18]} d3+ {[%emt 0:00:21]} 36. Kd2 {[%emt 0:00:11]} g5 {[%emt 0:00:21]} 37. h3 {[%emt 0:01:27]} Kh7 {[%emt 0:00:54]} 38. Rb7 {[%emt 0:01:34]} Kg6 {[%emt 0:00:24]} 39. Rb8 {[%emt 0:01:09]} Rxa5 {[%emt 0:00:12]} 40. Rh8 {[%emt 0:00:46]} Rxe5 {[%emt 0:00:06]} 41. Kxd3 {[%emt 0:00:41]} f5 {[%emt 0:16:17]} 42. h4 {[%emt 0:15:12]} gxh4 {[%emt 0:00:13]} 43. Rxh4 {[%emt 0:00:09]} Kg5 {[%emt 0:00:27]} 44. Rh1 {[%emt 0:00:22]} Kf6 {[%emt 0:00:09]} 45. Kd4 {[%emt 0:01:42]} Rd5+ {[%emt 0:00:25]} 46. Ke3 {[%emt 0:00:25]} e5 {[%emt 0:00:21]} 47. Kf3 {[%emt 0:00:43]} e4+ {[%emt 0:00:23]} 48. Ke3 {[%emt 0:00:13]} Rd3+ {[%emt 0:00:17]} 49. Ke2 {[%emt 0:00:19]} f4 {[%emt 0:00:55]} 50. Rf1 {[%emt 0:00:32]} Kf5 {[%emt 0:00:36]} 51. Rh1 {[%emt 0:00:54]} g5 {[%emt 0:00:24]} 52. Rh8 {[%emt 0:00:20]} f3+ {[%emt 0:00:28]} 53. Kf2 {[%emt 0:00:21]} Kg4 {[%emt 0:00:12]} 54. Re8 {[%emt 0:00:14]} e3+ {[%emt 0:00:32]} 0-1

[Event "GER-ch Youth-U10 2022"]
[Site "Willingen"]
[Date "2022.06.05"]
[Round "2.14"]
[White "Fischer, Quirin"]
[Black "Peglau, Paul David"]
[Result "0-1"]
[ECO "C01"]
[WhiteElo "1195"]
[BlackElo "1623"]
[Annotator "NA RC COMBH"]
[PlyCount "80"]
[EventDate "2022.06.05"]
[EventType "swiss"]
[EventRounds "11"]
[EventCountry "GER"]
[SourceTitle "playchess.com"]
[Source "ChessBase"]
[SourceQuality "1"]
[TimeControl "40/4500+30:900+30"]

1. e4 {[%emt 0:00:02]} e6 {[%emt 0:00:38]} 2. d4 {[%emt 0:00:20]} d5 {[%emt 0:00:02]} 3. exd5 {[%emt 0:00:09]} exd5 {[%emt 0:00:01]} 4. Bd3 {[%emt 0:00:13]} Bd6 {[%emt 0:00:09]} 5. Ne2 {[%emt 0:00:15]} Nf6 {[%emt 0:00:23]} 6. O-O {[%emt 0:00:18]} O-O {[%emt 0:00:07]} 7. Bf4 {[%emt 0:00:07]} c6 {[%emt 0:00:33]} 8. Nd2 {[%emt 0:00:13]} Be6 {[%emt 0:00:29]} 9. c4 {[%emt 0:00:17]} dxc4 {[%emt 0:02:11]} 10. Bxc4 {[%emt 0:00:20]} Bxf4 {[%emt 0:01:20]} 11. Nxf4 {[%emt 0:00:15]} Bg4 {[%emt 0:01:28]} 12. Nf3 {[%emt 0:00:54]} Bxf3 {[%emt 0:05:08]} 13. gxf3 {[%emt 0:03:17]} Qd6 {[%emt 0:03:42]} 14. Ne2 {[%emt 0:00:32]} Nbd7 {[%emt 0:01:40]} 15. Ng3 {[%emt 0:00:37]} Rad8 {[%emt 0:02:23]} 16. Kh1 {[%emt 0:05:07]} Nb6 {[%emt 0:01:33]} 17. Bb3 {[%emt 0:00:27]} Qxd4 {[%emt 0:01:41]} 18. Qxd4 {[%emt 0:00:11]} Rxd4 {[%emt 0:00:02]} 19. Rad1 {[%emt 0:00:15]} Rfd8 {[%emt 0:01:26]} 20. Rg1 {[%emt 0:00:46]} Rxd1 {[%emt 0:00:46]} 21. Bxd1 {[%emt 0:00:16]} Rd2 {[%emt 0:01:38]} 22. Nf5 {[%emt 0:01:45]} g6 {[%emt 0:00:58]} 23. Bb3 {[%emt 0:00:32]} Nbd5 {[%emt 0:01:08]} 24. Bxd5 {[%emt 0:01:05]} Nxd5 {[%emt 0:00:53]} 25. Nd6 {[%emt 0:00:13]} Rxb2 {[%emt 0:01:28]} 26. Rf1 {[%emt 0:01:41]} b5 {[%emt 0:03:20]} 27. Kg2 {[%emt 0:00:29]} Ne3+ {[%emt 0:02:01]} 28. Kg1 {[%emt 0:00:10]} Nxf1 {[%emt 0:00:02]} 29. Kxf1 {[%emt 0:00:16]} Rxa2 {[%emt 0:00:01]} 30. Nb7 {[%emt 0:00:10]} a5 {[%emt 0:00:09]} 31. Nd8 {[%emt 0:00:11]} c5 {[%emt 0:00:07]} 32. Nb7 {[%emt 0:00:03]} c4 {[%emt 0:00:06]} 33. Nd6 {[%emt 0:00:16]} c3 {[%emt 0:00:09]} 34. Nxb5 {[%emt 0:00:05]} c2 {[%emt 0:00:09]} 35. Kg2 {[%emt 0:00:16]} c1=Q {[%emt 0:00:07]} 36. Nd4 {[%emt 0:00:07]} Qe3 {[%emt 0:00:19]} 37. Nb5 {[%emt 0:00:12]} Qxf2+ {[%emt 0:00:07]} 38. Kh3 {[%emt 0:00:12]} Qxf3+ {[%emt 0:00:19]} 39. Kh4 {[%emt 0:00:13]} Rxh2+ {[%emt 0:00:08]} 40. Kg5 {[%emt 0:00:01]} Qf5# {[%emt 0:00:15]} 0-1

[Event "GER-ch Youth-U10 2022"]
[Site "Willingen"]
[Date "2022.06.05"]
[Round "2.15"]
[White "Bundan, Edward"]
[Black "Teng, David"]
[Result "0-1"]
[ECO "B49"]
[WhiteElo "1240"]
[BlackElo "1423"]
[Annotator "NA RC COMBH"]
[PlyCount "96"]
[EventDate "2022.06.05"]
[EventType "swiss"]
[EventRounds "11"]
[EventCountry "GER"]
[SourceTitle "playchess.com"]
[Source "ChessBase"]
[SourceQuality "1"]
[TimeControl "40/4500+30:900+30"]

1. e4 {[%emt 0:00:02]} c5 {[%emt 0:00:04]} 2. Nf3 {[%emt 0:00:22]} e6 {[%emt 0:00:14]} 3. d4 {[%emt 0:01:13]} cxd4 {[%emt 0:00:09]} 4. Nxd4 {[%emt 0:00:07]} a6 {[%emt 0:00:09]} 5. Bd3 {[%emt 0:00:35]} Nf6 {[%emt 0:00:31]} 6. Nc3 {[%emt 0:00:15]} Qc7 {[%emt 0:00:12]} 7. O-O {[%emt 0:01:30]} Be7 {[%emt 0:00:48]} 8. Bd2 {[%emt 0:01:41]} O-O {[%emt 0:00:23]} 9. f4 {[%emt 0:02:18]} Bc5 {[%emt 0:00:40]} 10. Be3 {[%emt 0:01:27]} Nc6 {[%emt 0:03:08]} 11. Be2 {[%emt 0:15:13]} b5 {[%emt 0:02:25]} 12. Qd3 {[%emt 0:07:33]} Bb7 {[%emt 0:03:35]} 13. e5 {[%emt 0:02:10]} Ne8 {[%emt 0:03:40]} 14. Nxc6 {[%emt 0:04:47]} Bxe3+ {[%emt 0:00:14]} 15. Qxe3 {[%emt 0:00:17]} Bxc6 {[%emt 0:01:46]} 16. a3 {[%emt 0:02:38]} d6 {[%emt 0:00:00]} 17. Bf3 {[%emt 0:04:48]} d5 {[%emt 0:03:28]} 18. Rad1 {[%emt 0:02:33]} Qb7 {[%emt 0:06:12]} 19. f5 {[%emt 0:04:00]} Nc7 {[%emt 0:04:17]} 20. f6 {[%emt 0:02:21]} gxf6 {[%emt 0:00:19]} 21. exf6 {[%emt 0:01:19]} Kh8 {[%emt 0:01:09]} 22. Qh6 {[%emt 0:01:15]} Rg8 {[%emt 0:01:01]} 23. Kh1 {[%emt 0:01:42]} Rg6 {[%emt 0:05:21]} 24. Qh4 {[%emt 0:00:54]} Rag8 {[%emt 0:02:29]} 25. Rd2 {[%emt 0:03:12]} Qb6 {[%emt 0:03:07]} 26. Rdf2 {[%emt 0:05:56]} d4 {[%emt 0:01:50]} 27. Ne4 {[%emt 0:01:07]} Nd5 {[%emt 0:05:51]} 28. Nd6 {[%emt 0:01:54]} Qc7 {[%emt 0:01:00]} 29. Nxf7+ {[%emt 0:07:07]} Qxf7 {[%emt 0:01:10]} 30. Bh5 {[%emt 0:00:17]} Ne3 {[%emt 0:00:15]} 31. Bxg6 {[%emt 0:00:54]} Qxg6 {[%emt 0:00:06]} 32. Rg1 {[%emt 0:01:09]} Nxg2 {[%emt 0:00:31]} 33. Qg3 {[%emt 0:06:34]} Ne1+ {[%emt 0:00:58]} 34. Rfg2 {[%emt 0:00:26]} Bxg2+ {[%emt 0:00:26]} 35. Rxg2 {[%emt 0:00:55]} Nxg2 {[%emt 0:00:21]} 36. Qe5 {[%emt 0:00:48]} Qf7 {[%emt 0:01:44]} 37. Qxd4 {[%emt 0:00:35]} Rf8 {[%emt 0:00:33]} 38. Kxg2 {[%emt 0:00:32]} Qxf6 {[%emt 0:00:06]} 39. Qxf6+ {[%emt 0:01:09]} Rxf6 {[%emt 0:00:34]} 40. Kg3 {[%emt 0:00:13]} e5 {[%emt 0:00:04]} 41. Kg4 {[%emt 0:15:07]} e4 {[%emt 0:15:05]} 42. Kg5 {[%emt 0:00:40]} Kg7 {[%emt 0:00:04]} 43. b3 {[%emt 0:00:19]} e3 {[%emt 0:00:13]} 44. h4 {[%emt 0:00:15]} e2 {[%emt 0:00:04]} 45. h5 {[%emt 0:00:05]} e1=Q {[%emt 0:00:10]} 46. h6+ {[%emt 0:00:16]} Kf7 {[%emt 0:00:05]} 47. c4 {[%emt 0:00:19]} Qg1+ {[%emt 0:00:13]} 48. Kh4 {[%emt 0:00:21]} Rxh6# {[%emt 0:00:04]} 0-1

[Event "GER-ch Youth-U10 2022"]
[Site "Willingen"]
[Date "2022.06.05"]
[Round "2.16"]
[White "Lanert, Theodor"]
[Black "Li, Joshua"]
[Result "1-0"]
[ECO "C56"]
[WhiteElo "1306"]
[BlackElo "1599"]
[Annotator "NA RC COMBH"]
[PlyCount "131"]
[EventDate "2022.06.05"]
[EventType "swiss"]
[EventRounds "11"]
[EventCountry "GER"]
[SourceTitle "playchess.com"]
[Source "ChessBase"]
[SourceQuality "1"]
[TimeControl "40/4500+30:900+30"]

1. e4 {[%emt 0:00:02]} e5 {[%emt 0:00:06]} 2. Nf3 {[%emt 0:00:04]} Nc6 {[%emt 0:00:07]} 3. Bc4 {[%emt 0:00:05]} Nf6 {[%emt 0:00:07]} 4. d4 {[%emt 0:00:04]} exd4 {[%emt 0:00:28]} 5. e5 {[%emt 0:00:18]} d5 {[%emt 0:01:24]} 6. Bb5 {[%emt 0:00:07]} Qe7 {[%emt 0:02:06]} 7. O-O {[%emt 0:00:44]} Nd7 {[%emt 0:06:01]} 8. Bg5 {[%emt 0:03:46]} Qb4 {[%emt 0:03:14]} 9. Bxc6 {[%emt 0:00:37]} bxc6 {[%emt 0:01:25]} 10. Qxd4 {[%emt 0:00:20]} Qxd4 {[%emt 0:02:06]} 11. Nxd4 {[%emt 0:00:59]} Nxe5 {[%emt 0:02:01]} 12. Re1 {[%emt 0:00:08]} f6 {[%emt 0:03:34]} 13. Nxc6 {[%emt 0:00:41]} Bd6 {[%emt 0:02:39]} 14. Nxe5 {[%emt 0:00:16]} fxe5 {[%emt 0:03:11]} 15. Bf4 {[%emt 0:00:41]} O-O {[%emt 0:01:09]} 16. Bxe5 {[%emt 0:00:15]} Bc5 {[%emt 0:01:05]} 17. Bg3 {[%emt 0:00:30]} Bf5 {[%emt 0:01:39]} 18. Nc3 {[%emt 0:01:09]} Bb4 {[%emt 0:00:24]} 19. Re2 {[%emt 0:01:19]} Bg4 {[%emt 0:01:51]} 20. f3 {[%emt 0:00:43]} Bc5+ {[%emt 0:01:29]} 21. Bf2 {[%emt 0:00:51]} Bxf2+ {[%emt 0:00:25]} 22. Kxf2 {[%emt 0:00:13]} Rab8 {[%emt 0:00:20]} 23. b3 {[%emt 0:00:17]} d4 {[%emt 0:11:28]} 24. Nd5 {[%emt 0:04:37]} Rf7 {[%emt 0:01:45]} 25. h3 {[%emt 0:02:13]} Bh5 {[%emt 0:00:25]} 26. g4 {[%emt 0:00:53]} Bg6 {[%emt 0:01:23]} 27. h4 {[%emt 0:00:06]} h5 {[%emt 0:00:43]} 28. Ne7+ {[%emt 0:00:15]} Kh7 {[%emt 0:00:27]} 29. Nxg6 {[%emt 0:00:05]} Kxg6 {[%emt 0:00:26]} 30. Re6+ {[%emt 0:00:04]} Kh7 {[%emt 0:00:15]} 31. gxh5 {[%emt 0:00:16]} Rbf8 {[%emt 0:00:42]} 32. Rg1 {[%emt 0:02:57]} Rxf3+ {[%emt 0:00:30]} 33. Ke2 {[%emt 0:00:08]} Rf2+ {[%emt 0:00:40]} 34. Kd3 {[%emt 0:00:16]} R8f3+ {[%emt 0:04:34]} 35. Kxd4 {[%emt 0:00:21]} Rh3 {[%emt 0:00:45]} 36. Rg4 {[%emt 0:00:39]} c5+ {[%emt 0:00:35]} 37. Kd5 {[%emt 0:00:49]} Rd2+ {[%emt 0:00:20]} 38. Kc6 {[%emt 0:00:08]} Rxc2 {[%emt 0:00:13]} 39. Re7 {[%emt 0:00:03]} c4 {[%emt 0:00:53]} 40. bxc4 {[%emt 0:00:31]} Rd3 {[%emt 0:00:31]} 41. Rexg7+ {[%emt 0:16:06]} Kh8 {[%emt 0:15:23]} 42. Rxa7 {[%emt 0:01:28]} Rd6+ {[%emt 0:00:14]} 43. Kxd6 {[%emt 0:00:27]} Rd2+ {[%emt 0:00:15]} 44. Rd4 {[%emt 0:00:40]} Rxd4+ {[%emt 0:00:06]} 45. Kc5 {[%emt 0:00:07]} Rxh4 {[%emt 0:00:13]} 46. a4 {[%emt 0:00:11]} Rxh5+ {[%emt 0:00:07]} 47. Kb6 {[%emt 0:00:10]} Rh6+ {[%emt 0:01:05]} 48. Kb5 {[%emt 0:00:07]} Rh1 {[%emt 0:00:15]} 49. c5 {[%emt 0:00:10]} Rb1+ {[%emt 0:00:24]} 50. Kc6 {[%emt 0:00:07]} Kg8 {[%emt 0:00:50]} 51. a5 {[%emt 0:00:24]} Rb8 {[%emt 0:00:24]} 52. a6 {[%emt 0:00:22]} Kf8 {[%emt 0:00:51]} 53. Rb7 {[%emt 0:00:09]} Rc8+ {[%emt 0:00:23]} 54. Kb6 {[%emt 0:00:08]} Ra8 {[%emt 0:00:36]} 55. a7 {[%emt 0:00:02]} Rxa7 {[%emt 0:00:12]} 56. Kxa7 {[%emt 0:00:15]} Ke8 {[%emt 0:00:16]} 57. c6 {[%emt 0:00:10]} Kd8 {[%emt 0:01:53]} 58. Rh7 {[%emt 0:00:19]} Kc8 {[%emt 0:00:20]} 59. Kb6 {[%emt 0:00:08]} Kd8 {[%emt 0:00:22]} 60. c7+ {[%emt 0:00:10]} Kc8 {[%emt 0:00:05]} 61. Rh6 {[%emt 0:01:22]} Kd7 {[%emt 0:00:15]} 62. Kb7 {[%emt 0:00:08]} Ke7 {[%emt 0:00:09]} 63. c8=Q {[%emt 0:00:07]} Kf7 {[%emt 0:00:10]} 64. Qd7+ {[%emt 0:01:00]} Kg8 {[%emt 0:00:07]} 65. Re6 {[%emt 0:00:07]} Kf8 {[%emt 0:00:51]} 66. Re8# {[%emt 0:00:03]} 1-0

[Event "GER-ch Youth-U10 2022"]
[Site "Willingen"]
[Date "2022.06.05"]
[Round "2.17"]
[White "Zhao, Yunsheng"]
[Black "Li, Yunqi"]
[Result "0-1"]
[ECO "B80"]
[WhiteElo "1144"]
[BlackElo "1312"]
[Annotator "NA RC COMBH"]
[PlyCount "80"]
[EventDate "2022.06.05"]
[EventType "swiss"]
[EventRounds "11"]
[EventCountry "GER"]
[SourceTitle "playchess.com"]
[Source "ChessBase"]
[SourceQuality "1"]
[TimeControl "40/4500+30:900+30"]

1. e4 {[%emt 0:00:02]} c5 {[%emt 0:00:06]} 2. Nf3 {[%emt 0:00:06]} d6 {[%emt 0:00:04]} 3. d4 {[%emt 0:00:05]} cxd4 {[%emt 0:00:05]} 4. Nxd4 {[%emt 0:00:06]} Nf6 {[%emt 0:00:07]} 5. Nc3 {[%emt 0:00:06]} a6 {[%emt 0:00:09]} 6. Bd3 {[%emt 0:00:46]} e6 {[%emt 0:00:26]} 7. Be3 {[%emt 0:01:01]} b5 {[%emt 0:00:35]} 8. a4 {[%emt 0:01:27]} bxa4 {[%emt 0:00:10]} 9. Rxa4 {[%emt 0:00:35]} Bb7 {[%emt 0:00:16]} 10. Qe2 {[%emt 0:01:16]} Be7 {[%emt 0:01:10]} 11. O-O {[%emt 0:01:00]} O-O {[%emt 0:00:07]} 12. Rfa1 {[%emt 0:02:55]} Nbd7 {[%emt 0:02:20]} 13. b4 {[%emt 0:02:29]} Qc8 {[%emt 0:02:24]} 14. Qd2 {[%emt 0:01:30]} Ne5 {[%emt 0:04:14]} 15. f3 {[%emt 0:01:54]} Nfd7 {[%emt 0:08:24]} 16. Be2 {[%emt 0:10:13]} Nb6 {[%emt 0:03:01]} 17. R4a2 {[%emt 0:01:00]} Nbc4 {[%emt 0:01:26]} 18. Bxc4 {[%emt 0:00:27]} Nxc4 {[%emt 0:00:17]} 19. Qd3 {[%emt 0:00:32]} d5 {[%emt 0:00:30]} 20. exd5 {[%emt 0:01:15]} exd5 {[%emt 0:01:54]} 21. b5 {[%emt 0:01:41]} a5 {[%emt 0:19:51]} 22. Nb3 {[%emt 0:03:08]} Rd8 {[%emt 0:06:01]} 23. Nxa5 {[%emt 0:07:19]} Nxa5 {[%emt 0:00:30]} 24. Bb6 {[%emt 0:03:18]} Bc5+ {[%emt 0:00:38]} 25. Bxc5 {[%emt 0:00:35]} Qxc5+ {[%emt 0:00:08]} 26. Kh1 {[%emt 0:00:26]} Nc4 {[%emt 0:01:49]} 27. Rxa8 {[%emt 0:00:45]} Rxa8 {[%emt 0:01:10]} 28. Rxa8+ {[%emt 0:00:21]} Bxa8 {[%emt 0:00:15]} 29. Qe2 {[%emt 0:01:42]} Qe3 {[%emt 0:03:15]} 30. Qxe3 {[%emt 0:00:23]} Nxe3 {[%emt 0:00:14]} 31. Kg1 {[%emt 0:00:27]} Nxc2 {[%emt 0:02:11]} 32. Kf2 {[%emt 0:01:23]} Kf8 {[%emt 0:00:31]} 33. Ke2 {[%emt 0:00:17]} Ke7 {[%emt 0:01:56]} 34. Kd3 {[%emt 0:00:38]} Ne1+ {[%emt 0:00:48]} 35. Kd4 {[%emt 0:00:37]} Kd6 {[%emt 0:01:09]} 36. Ne2 {[%emt 0:01:45]} Nxg2 {[%emt 0:00:25]} 37. Ng3 {[%emt 0:00:11]} g6 {[%emt 0:00:15]} 38. h3 {[%emt 0:01:58]} Nf4 {[%emt 0:01:18]} 39. h4 {[%emt 0:00:58]} Ne6+ {[%emt 0:00:20]} 40. Kc3 {[%emt 0:00:25]} Kc5 {[%emt 0:01:23]} 0-1

[Event "GER-ch Youth-U10 2022"]
[Site "Willingen"]
[Date "2022.06.05"]
[Round "2.18"]
[White "Rodriguez Klasen, Ennio"]
[Black "Classen, Marnin"]
[Result "1-0"]
[ECO "E01"]
[WhiteElo "1315"]
[BlackElo "1168"]
[Annotator "NA RC COMBH"]
[PlyCount "49"]
[EventDate "2022.06.05"]
[EventType "swiss"]
[EventRounds "11"]
[EventCountry "GER"]
[SourceTitle "playchess.com"]
[Source "ChessBase"]
[SourceQuality "1"]
[TimeControl "40/4500+30:900+30"]

1. Nf3 {[%emt 0:00:05]} e6 {[%emt 0:00:08]} 2. g3 {[%emt 0:01:00]} d5 {[%emt 0:00:15]} 3. Bg2 {[%emt 0:00:05]} Nf6 {[%emt 0:00:13]} 4. O-O {[%emt 0:00:28]} Bd6 {[%emt 0:00:16]} 5. d4 {[%emt 0:00:23]} O-O {[%emt 0:00:14]} 6. c4 {[%emt 0:00:48]} c6 {[%emt 0:00:11]} 7. Qc2 {[%emt 0:01:02]} Re8 {[%emt 0:00:23]} 8. Nbd2 {[%emt 0:00:44]} Nbd7 {[%emt 0:00:14]} 9. e4 {[%emt 0:01:22]} e5 {[%emt 0:01:15]} 10. cxd5 {[%emt 0:13:34]} cxd5 {[%emt 0:01:44]} 11. exd5 {[%emt 0:02:14]} Nxd5 {[%emt 0:00:13]} 12. Nxe5 {[%emt 0:00:30]} Nxe5 {[%emt 0:00:21]} 13. Bxd5 {[%emt 0:00:37]} Ng6 {[%emt 0:00:35]} 14. Qb3 {[%emt 0:02:19]} Re7 {[%emt 0:00:52]} 15. Ne4 {[%emt 0:02:46]} h6 {[%emt 0:00:10]} 16. Bd2 {[%emt 0:11:41]} a5 {[%emt 0:00:23]} 17. Rfe1 {[%emt 0:05:41]} Rb8 {[%emt 0:04:06]} 18. Nxd6 {[%emt 0:01:13]} Qxd6 {[%emt 0:01:10]} 19. Rxe7 {[%emt 0:05:22]} Qxe7 {[%emt 0:00:39]} 20. Re1 {[%emt 0:01:17]} Qc7 {[%emt 0:00:37]} 21. Re8+ {[%emt 0:02:05]} Nf8 {[%emt 0:00:35]} 22. Qa3 {[%emt 0:02:13]} Bd7 {[%emt 0:01:47]} 23. Qxf8+ {[%emt 0:00:00]} Kh7 {[%emt 0:00:17]} 24. Be4+ {[%emt 0:00:00]} g6 {[%emt 0:00:33]} 25. Qxf7# {[%emt 0:00:00]} 1-0

[Event "GER-ch Youth-U10 2022"]
[Site "Willingen"]
[Date "2022.06.05"]
[Round "2.19"]
[White "Wang, Kaiwen"]
[Black "Leonhardt, Max"]
[Result "0-1"]
[ECO "C47"]
[WhiteElo "1151"]
[BlackElo "1114"]
[Annotator "NA RC COMBH"]
[PlyCount "72"]
[EventDate "2022.06.05"]
[EventType "swiss"]
[EventRounds "11"]
[EventCountry "GER"]
[SourceTitle "playchess.com"]
[Source "ChessBase"]
[SourceQuality "1"]
[TimeControl "40/4500+30:900+30"]

1. e4 {[%emt 0:00:02]} e5 {[%emt 0:00:06]} 2. Nf3 {[%emt 0:00:04]} Nc6 {[%emt 0:00:04]} 3. Nc3 {[%emt 0:00:05]} Nf6 {[%emt 0:00:08]} 4. d4 {[%emt 0:00:04]} exd4 {[%emt 0:00:06]} 5. Nxd4 {[%emt 0:00:07]} Bb4 {[%emt 0:00:06]} 6. Nxc6 {[%emt 0:00:06]} bxc6 {[%emt 0:00:06]} 7. Bd3 {[%emt 0:00:05]} O-O {[%emt 0:00:11]} 8. O-O {[%emt 0:00:06]} d5 {[%emt 0:00:02]} 9. exd5 {[%emt 0:00:09]} Bxc3 {[%emt 0:00:12]} 10. bxc3 {[%emt 0:00:14]} cxd5 {[%emt 0:00:10]} 11. Bg5 {[%emt 0:00:17]} h6 {[%emt 0:00:11]} 12. Bh4 {[%emt 0:00:14]} Be6 {[%emt 0:00:13]} 13. Re1 {[%emt 0:00:49]} c6 {[%emt 0:00:21]} 14. Qe2 {[%emt 0:01:23]} Rb8 {[%emt 0:01:01]} 15. Rab1 {[%emt 0:03:34]} Rxb1 {[%emt 0:00:27]} 16. Rxb1 {[%emt 0:00:13]} Re8 {[%emt 0:00:30]} 17. Qf3 {[%emt 0:01:36]} Qe7 {[%emt 0:00:37]} 18. h3 {[%emt 0:01:11]} Rd8 {[%emt 0:00:53]} 19. Qg3 {[%emt 0:00:59]} c5 {[%emt 0:04:44]} 20. Bxf6 {[%emt 0:00:28]} Qxf6 {[%emt 0:00:18]} 21. Qc7 {[%emt 0:00:43]} c4 {[%emt 0:02:15]} 22. Rb8 {[%emt 0:00:15]} Rf8 {[%emt 0:00:08]} 23. Bh7+ {[%emt 0:00:16]} Kxh7 {[%emt 0:00:18]} 24. Rxf8 {[%emt 0:00:08]} Qxc3 {[%emt 0:00:35]} 25. Qxa7 {[%emt 0:00:45]} Qxc2 {[%emt 0:00:16]} 26. Qa3 {[%emt 0:01:30]} Qd2 {[%emt 0:00:27]} 27. g4 {[%emt 0:12:30]} c3 {[%emt 0:00:45]} 28. Qa8 {[%emt 0:08:58]} c2 {[%emt 0:00:31]} 29. Rh8+ {[%emt 0:00:08]} Kg6 {[%emt 0:00:10]} 30. h4 {[%emt 0:02:58]} c1=Q+ {[%emt 0:00:13]} 31. Kg2 {[%emt 0:00:10]} Qde1 {[%emt 0:01:24]} 32. h5+ {[%emt 0:00:22]} Kg5 {[%emt 0:01:24]} 33. Qd8+ {[%emt 0:01:03]} Kf4 {[%emt 0:00:23]} 34. Qb8+ {[%emt 0:02:47]} Qe5 {[%emt 0:00:15]} 35. Qb3 {[%emt 0:03:01]} Qe4+ {[%emt 0:01:27]} 36. Kh3 {[%emt 0:00:34]} Qch1# {[%emt 0:00:50]} 0-1

[Event "GER-ch Youth-U10 2022"]
[Site "Willingen"]
[Date "2022.06.05"]
[Round "2.20"]
[White "Tak, Rannveer"]
[Black "Antonius, Richard-Malte"]
[Result "1-0"]
[ECO "B25"]
[WhiteElo "1746"]
[BlackElo "1106"]
[Annotator "NA RC COMBH"]
[PlyCount "53"]
[EventDate "2022.06.05"]
[EventType "swiss"]
[EventRounds "11"]
[EventCountry "GER"]
[SourceTitle "playchess.com"]
[Source "ChessBase"]
[SourceQuality "1"]
[TimeControl "40/4500+30:900+30"]

1. e4 {[%emt 0:00:05]} c5 {[%emt 0:00:03]} 2. Nc3 {[%emt 0:00:31]} Nc6 {[%emt 0:00:10]} 3. g3 {[%emt 0:00:12]} Nf6 {[%emt 0:00:13]} 4. Bg2 {[%emt 0:00:27]} g6 {[%emt 0:00:29]} 5. d3 {[%emt 0:00:09]} Bg7 {[%emt 0:00:08]} 6. f4 {[%emt 0:00:17]} d6 {[%emt 0:00:15]} 7. Nf3 {[%emt 0:00:16]} Bd7 {[%emt 0:00:18]} 8. O-O {[%emt 0:00:25]} O-O {[%emt 0:00:05]} 9. h3 {[%emt 0:00:23]} Qc8 {[%emt 0:02:23]} 10. g4 {[%emt 0:00:55]} Ne8 {[%emt 0:00:49]} 11. Ne2 {[%emt 0:03:02]} Nc7 {[%emt 0:00:14]} 12. c3 {[%emt 0:00:49]} Re8 {[%emt 0:00:11]} 13. Ng3 {[%emt 0:00:28]} h6 {[%emt 0:00:57]} 14. Kh2 {[%emt 0:00:50]} Kh7 {[%emt 0:01:31]} 15. g5 {[%emt 0:10:52]} h5 {[%emt 0:00:09]} 16. Nh4 {[%emt 0:00:21]} e6 {[%emt 0:02:56]} 17. f5 {[%emt 0:01:06]} exf5 {[%emt 0:00:14]} 18. exf5 {[%emt 0:00:18]} Be5 {[%emt 0:11:41]} 19. Bf4 {[%emt 0:02:34]} Bxf4 {[%emt 0:00:28]} 20. Rxf4 {[%emt 0:00:14]} Qd8 {[%emt 0:01:29]} 21. fxg6+ {[%emt 0:01:49]} fxg6 {[%emt 0:00:32]} 22. Rf6 {[%emt 0:00:24]} Rg8 {[%emt 0:01:56]} 23. Nxh5 {[%emt 0:01:20]} Be8 {[%emt 0:01:30]} 24. Nf4 {[%emt 0:02:54]} Kg7 {[%emt 0:02:27]} 25. Nfxg6 {[%emt 0:01:11]} Bxg6 {[%emt 0:01:02]} 26. Rxg6+ {[%emt 0:00:48]} Kf8 {[%emt 0:00:21]} 27. Qf3+ {[%emt 0:00:17]} 1-0

[Event "GER-ch Youth-U10 2022"]
[Site "Willingen"]
[Date "2022.06.05"]
[Round "2.21"]
[White "Dotschuweit, Erik"]
[Black "Yao, Haiyang"]
[Result "1-0"]
[ECO "C41"]
[WhiteElo "1323"]
[BlackElo "1098"]
[Annotator "NA RC COMBH"]
[PlyCount "21"]
[EventDate "2022.06.05"]
[EventType "swiss"]
[EventRounds "11"]
[EventCountry "GER"]
[SourceTitle "playchess.com"]
[Source "ChessBase"]
[SourceQuality "1"]
[TimeControl "40/4500+30:900+30"]

1. e4 {[%emt 0:00:08]} e5 {[%emt 0:00:04]} 2. Nf3 {[%emt 0:00:14]} d6 {[%emt 0:00:08]} 3. d4 {[%emt 0:00:15]} Nd7 {[%emt 0:00:11]} 4. Bc4 {[%emt 0:01:38]} Be7 {[%emt 0:00:08]} 5. O-O {[%emt 0:00:37]} h6 {[%emt 0:00:10]} 6. dxe5 {[%emt 0:02:21]} dxe5 {[%emt 0:00:17]} 7. Qd5 {[%emt 0:01:08]} Nb6 {[%emt 0:11:43]} 8. Qxf7+ {[%emt 0:01:02]} Kd7 {[%emt 0:00:08]} 9. Qe6+ {[%emt 0:00:18]} Ke8 {[%emt 0:00:49]} 10. Qg6+ {[%emt 0:00:08]} Kd7 {[%emt 0:00:48]} 11. Nxe5# {[%emt 0:00:06]} 1-0